[Event "MČR juniorů a juniorek v rapid šachu 2023"]
[Site "Czech Republic"]
[Date "2023.09.23"]
[Round "3.18"]
[White "Havelkova, Beata"]
[Black "Rucabado, Stefan"]
[Result "1-0"]
[TimeControl "20 min + 5 sec per move"]
[WhiteFideId "23709405"]
[BlackFideId "23730315"]
[WhiteElo "1494"]
[BlackElo "1782"]

1. e4 {[%clk 00:20:09]} g6 {[%clk 00:20:07]} {[%emt 00:00:03]} 2. d4 {[%clk
00:20:13]} {[%emt 00:00:02]} Bg7 {[%clk 00:20:11]} 3. Be3 {[%clk 00:20:14]}
{[%emt 00:00:05]} a6 {[%clk 00:20:15]} 4. f4 {[%clk 00:20:10]} {[%emt
00:00:09]} b5 {[%clk 00:20:18]} {[%emt 00:00:01]} 5. Nf3 {[%clk 00:20:04]}
{[%emt 00:00:10]} Bb7 {[%clk 00:20:23]} {[%emt 00:00:01]} 6. Bd3 {[%clk
00:20:06]} {[%emt 00:00:03]} d6 {[%clk 00:20:26]} {[%emt 00:00:02]} 7. O-O
{[%clk 00:20:05]} {[%emt 00:00:06]} Nf6 {[%clk 00:20:13]} {[%emt 00:00:18]} 8.
Nbd2 {[%clk 00:19:35]} {[%emt 00:00:34]} Ng4 {[%clk 00:20:09]} {[%emt
00:00:10]} 9. Qe2 {[%clk 00:19:18]} {[%emt 00:00:22]} Nxe3 {[%clk 00:20:11]}
{[%emt 00:00:03]} 10. Qxe3 {[%clk 00:19:22]} {[%emt 00:00:01]} Nd7 {[%clk
00:20:15]} {[%emt 00:00:01]} 11. f5 {[%clk 00:19:15]} {[%emt 00:00:12]} O-O
{[%clk 00:20:16]} {[%emt 00:00:04]} 12. Ng5 {[%clk 00:18:37]} {[%emt 00:00:42]}
c5 {[%clk 00:20:08]} {[%emt 00:00:13]} 13. c3 {[%clk 00:18:03]} {[%emt
00:00:39]} cxd4 {[%clk 00:19:49]} {[%emt 00:00:24]} 14. cxd4 {[%clk 00:17:57]}
{[%emt 00:00:11]} Qb6 {[%clk 00:19:48]} {[%emt 00:00:04]} 15. Ndf3 {[%clk
00:17:20]} {[%emt 00:00:43]} Ne5 {[%clk 00:19:12]} {[%emt 00:00:41]} 16. Bc2
{[%clk 00:14:08]} {[%emt 00:03:18]} Rac8 {[%clk 00:18:40]} {[%emt 00:00:37]} 17.
Bb3 {[%clk 00:13:58]} {[%emt 00:00:13]} Nc4 {[%clk 00:18:30]} {[%emt 00:00:16]}
18. Qf2 {[%clk 00:13:00]} {[%emt 00:01:03]} h6 {[%clk 00:17:46]} {[%emt
00:00:50]} 19. Nh3 {[%clk 00:10:29]} {[%emt 00:02:36]} g5 {[%clk 00:17:24]}
{[%emt 00:00:27]} 20. Kh1 {[%clk 00:08:55]} {[%emt 00:01:39]} Bxe4 {[%clk
00:17:02]} {[%emt 00:00:27]} 21. Nfxg5 {[%clk 00:08:19]} {[%emt 00:00:42]} hxg5
{[%clk 00:16:30]} {[%emt 00:00:36]} 22. Nxg5 {[%clk 00:08:17]} {[%emt
00:00:07]} Qxd4 {[%clk 00:16:24]} {[%emt 00:00:11]} 23. Qg3 {[%clk 00:06:38]}
{[%emt 00:01:44]} Ne3 {[%clk 00:14:00]} {[%emt 00:02:28]} 24. Rf2 {[%clk
00:05:16]} {[%emt 00:01:28]} Nxf5 {[%clk 00:09:56]} {[%emt 00:04:09]} 25. Qh3
{[%clk 00:05:16]} {[%emt 00:00:05]} Nh6 {[%clk 00:09:30]} {[%emt 00:00:31]} 26.
Rxf7 {[%clk 00:03:04]} {[%emt 00:02:17]} Bxg2+ {[%clk 00:08:39]} {[%emt
00:00:56]} 27. Kxg2 {[%clk 00:03:08]} {[%emt 00:00:01]} Qd2+ {[%clk 00:08:14]}
{[%emt 00:00:29]} 28. Rf2+ {[%clk 00:03:08]} {[%emt 00:00:06]} 1-0

[Event "MČR juniorů a juniorek v rapid šachu 2023"]
[Site "Czech Republic"]
[Date "2023.09.23"]
[Round "3.19"]
[White "Rybackova, Lucie"]
[Black "Boff, Ondrej"]
[Result "0-1"]
[TimeControl "20 min + 5 sec per move"]
[WhiteFideId "23739207"]
[BlackFideId "23733950"]
[WhiteElo "1768"]
[BlackElo "1486"]

1. d4 {[%clk 00:20:08]} {[%emt 00:00:01]} Nf6 {[%clk 00:20:08]} {[%emt
00:00:02]} 2. Nf3 {[%clk 00:20:10]} {[%emt 00:00:02]} c5 {[%clk 00:20:11]}
{[%emt 00:00:03]} 3. d5 {[%clk 00:19:57]} {[%emt 00:00:19]} d6 {[%clk
00:19:54]} {[%emt 00:00:22]} 4. Nc3 {[%clk 00:19:50]} {[%emt 00:00:12]} a6
{[%clk 00:19:42]} {[%emt 00:00:16]} 5. a4 {[%clk 00:19:43]} {[%emt 00:00:13]}
Bf5 {[%clk 00:19:21]} {[%emt 00:00:25]} 6. Bg5 {[%clk 00:18:31]} {[%emt
00:01:18]} Nbd7 {[%clk 00:19:03]} {[%emt 00:00:23]} 7. Nd2 {[%clk 00:17:08]}
{[%emt 00:01:28]} h6 {[%clk 00:18:21]} {[%emt 00:00:47]} 8. Bh4 {[%clk
00:17:02]} {[%emt 00:00:09]} g5 {[%clk 00:18:04]} {[%emt 00:00:25]} 9. Bg3
{[%clk 00:16:58]} {[%emt 00:00:08]} Bg7 {[%clk 00:18:03]} {[%emt 00:00:06]} 10.
e4 {[%clk 00:16:28]} {[%emt 00:00:36]} Bg6 {[%clk 00:17:35]} {[%emt 00:00:31]}
11. Bd3 {[%clk 00:15:34]} {[%emt 00:01:00]} Rb8 {[%clk 00:16:02]} {[%emt
00:01:37]} 12. Qe2 {[%clk 00:14:53]} {[%emt 00:00:47]} Nh5 {[%clk 00:15:21]}
{[%emt 00:00:45]} 13. Nf1 {[%clk 00:11:32]} {[%emt 00:03:27]} Qb6 {[%clk
00:13:47]} {[%emt 00:01:38]} 14. Nd1 {[%clk 00:09:38]} {[%emt 00:02:01]} Bxb2
{[%clk 00:12:30]} {[%emt 00:01:21]} 15. Rb1 {[%clk 00:09:16]} {[%emt 00:00:28]}
Qa5+ {[%clk 00:12:11]} {[%emt 00:00:20]} 16. Qd2 {[%clk 00:09:01]} {[%emt
00:00:22]} Qxd2+ {[%clk 00:11:59]} {[%emt 00:00:17]} 17. Kxd2 {[%clk 00:09:01]}
{[%emt 00:00:06]} Nxg3 {[%clk 00:11:27]} {[%emt 00:00:36]} 18. hxg3 {[%clk
00:08:56]} {[%emt 00:00:10]} Bg7 {[%emt 00:00:09]} 19. f4 Nf6 20. Nf2 c4 {[%clk
00:11:22]} 21. Bxc4 Nxe4+ 22. Nxe4 {[%clk 00:06:16]} {[%emt 00:00:25]} Bxe4
{[%clk 00:09:40]} {[%emt 00:00:05]} 23. Ne3 {[%clk 00:06:12]} {[%emt 00:00:09]}
Kd7 {[%clk 00:08:03]} {[%emt 00:01:41]} 24. fxg5 {[%clk 00:04:10]} {[%emt
00:02:07]} hxg5 {[%clk 00:07:54]} {[%emt 00:00:14]} 25. Rxh8 {[%clk 00:04:13]}
{[%emt 00:00:03]} Bxh8 {[%clk 00:07:55]} {[%emt 00:00:03]} 26. Bxa6 {[%clk
00:04:16]} {[%emt 00:00:04]} Kc7 {[%clk 00:06:59]} {[%emt 00:01:00]} 27. Bd3
{[%clk 00:04:16]} {[%emt 00:00:05]} Bxd3 {[%clk 00:06:27]} {[%emt 00:00:37]} 28.
Kxd3 {[%clk 00:04:17]} {[%emt 00:00:04]} e6 {[%clk 00:06:24]} {[%emt 00:00:08]}
29. Rf1 {[%clk 00:03:47]} {[%emt 00:00:36]} exd5 {[%clk 00:05:24]} {[%emt
00:01:05]} 30. Rxf7+ {[%clk 00:03:40]} {[%emt 00:00:12]} Kc6 {[%clk 00:05:25]}
{[%emt 00:00:03]} 31. Rf5 {[%clk 00:02:29]} {[%emt 00:01:08]} Rg8 {[%clk
00:04:56]} {[%emt 00:00:42]} 32. Nxd5 {[%clk 00:02:19]} {[%emt 00:00:16]} Ra8
{[%clk 00:04:23]} {[%emt 00:00:37]} 33. Nb4+ {[%clk 00:01:18]} {[%emt
00:01:06]} Kb6 {[%clk 00:03:54]} {[%emt 00:00:33]} 34. Rb5+ {[%clk 00:01:07]}
{[%emt 00:00:16]} Kc7 {[%clk 00:03:25]} {[%emt 00:00:34]} 35. a5 {[%clk
00:01:04]} {[%emt 00:00:09]} Be5 {[%clk 00:03:19]} {[%emt 00:00:10]} 36. c4
{[%clk 00:00:36]} {[%emt 00:00:34]} Bxg3 {[%clk 00:02:53]} {[%emt 00:00:31]} 37.
Rxg5 {[%clk 00:00:36]} {[%emt 00:00:06]} Be5 {[%clk 00:02:53]} {[%emt
00:00:04]} 38. Nd5+ {[%clk 00:00:31]} {[%emt 00:00:11]} Kc6 {[%clk 00:02:26]}
{[%emt 00:00:32]} 39. Nb4+ {[%clk 00:00:13]} {[%emt 00:00:24]} Kc5 {[%clk
00:02:23]} {[%emt 00:00:08]} 40. Nc2 {[%clk 00:00:09]} {[%emt 00:00:09]} Rxa5
{[%clk 00:02:16]} {[%emt 00:00:12]} 41. Ne3 {[%clk 00:00:11]} {[%emt 00:00:03]}
Ra3+ {[%clk 00:02:14]} {[%emt 00:00:06]} 42. Ke2 {[%clk 00:00:15]} {[%emt
00:00:02]} Kc6 {[%clk 00:02:01]} {[%emt 00:00:18]} 43. Ng4 {[%clk 00:00:07]}
{[%emt 00:00:13]} Rc3 {[%clk 00:01:15]} {[%emt 00:00:50]} 44. Nxe5+ {[%clk
00:00:09]} {[%emt 00:00:04]} dxe5 {[%clk 00:01:19]} {[%emt 00:00:02]} 45. Rxe5
{[%clk 00:00:12]} {[%emt 00:00:02]} Rxc4 {[%clk 00:01:22]} {[%emt 00:00:02]} 46.
Re8 {[%clk 00:00:08]} {[%emt 00:00:08]} Rg4 {[%clk 00:01:16]} {[%emt 00:00:10]}
47. Kf3 {[%clk 00:00:12]} {[%emt 00:00:03]} Rd4 {[%clk 00:01:11]} {[%emt
00:00:08]} 48. g4 {[%clk 00:00:15]} {[%emt 00:00:04]} b5 {[%clk 00:01:12]}
{[%emt 00:00:03]} 49. g5 {[%clk 00:00:00]} {[%emt 00:00:15]} Kd7 {[%clk
00:01:12]} {[%emt 00:00:18]} 50. Re5 {[%clk 00:00:00]} {[%emt 00:00:03]} b4
{[%clk 00:01:12]} {[%emt 00:00:14]} 51. g6 {[%clk 00:00:00]} {[%emt 00:00:07]}
0-1

[Event "MČR juniorů a juniorek v rapid šachu 2023"]
[Site "Czech Republic"]
[Date "2023.09.23"]
[Round "3.20"]
[White "Husa, Daniel"]
[Black "Hruby, Filip"]
[Result "1-0"]
[TimeControl "20 min + 5 sec per move"]
[WhiteFideId "393487"]
[BlackFideId "23721480"]
[WhiteElo "1760"]
[BlackElo "1460"]

1. d4 {[%clk 00:20:08]} {[%emt 00:00:01]} c6 {[%clk 00:20:09]} {[%emt
00:00:02]} 2. c4 {[%clk 00:20:09]} {[%emt 00:00:03]} Nf6 {[%clk 00:20:12]}
{[%emt 00:00:02]} 3. Nf3 {[%clk 00:20:12]} {[%emt 00:00:02]} d5 {[%clk
00:20:11]} {[%emt 00:00:05]} 4. cxd5 {[%clk 00:20:12]} {[%emt 00:00:06]} cxd5
{[%clk 00:20:14]} {[%emt 00:00:02]} 5. Nc3 {[%clk 00:20:15]} {[%emt 00:00:03]}
Nc6 {[%clk 00:20:09]} {[%emt 00:00:10]} 6. Bf4 {[%clk 00:20:17]} {[%emt
00:00:03]} a6 {[%clk 00:20:10]} {[%emt 00:00:04]} 7. e3 {[%clk 00:20:16]}
{[%emt 00:00:07]} Bf5 {[%clk 00:19:52]} {[%emt 00:00:23]} 8. Qb3 {[%clk
00:19:33]} {[%emt 00:00:47]} Bc8 {[%clk 00:17:56]} {[%emt 00:02:01]} 9. Ne5
{[%clk 00:18:38]} {[%emt 00:01:01]} e6 {[%clk 00:17:52]} {[%emt 00:00:09]} 10.
Rc1 {[%clk 00:17:18]} {[%emt 00:01:25]} Bd6 {[%clk 00:13:41]} {[%emt 00:04:15]}
11. Qa4 {[%clk 00:12:48]} {[%emt 00:04:37]} Bxe5 {[%emt 00:01:13]} 12. Bxe5
{[%clk 00:12:45]} {[%emt 00:00:07]} O-O {[%clk 00:12:33]} {[%emt 00:00:06]} 13.
Bg3 {[%clk 00:11:56]} {[%emt 00:00:53]} Nh5 {[%clk 00:11:41]} {[%emt 00:00:55]}
14. Bd3 {[%clk 00:11:43]} {[%emt 00:00:19]} Nxg3 {[%clk 00:11:20]} {[%emt
00:00:27]} 15. hxg3 {[%clk 00:11:44]} {[%emt 00:00:04]} g6 {[%clk 00:11:21]}
{[%emt 00:00:04]} 16. Rh4 {[%clk 00:10:11]} {[%emt 00:01:38]} e5 {[%clk
00:06:41]} {[%emt 00:04:45]} 17. dxe5 {[%clk 00:09:37]} {[%emt 00:00:40]} Nxe5
{[%clk 00:06:42]} {[%emt 00:00:04]} 18. Bb1 {[%clk 00:09:03]} {[%emt 00:00:39]}
Be6 {[%clk 00:05:27]} {[%emt 00:01:19]} 19. Qf4 {[%clk 00:07:25]} {[%emt
00:01:41]} g5 {[%clk 00:04:31]} {[%emt 00:01:03]} 20. Bxh7+ {[%clk 00:07:08]}
{[%emt 00:00:23]} Kg7 {[%clk 00:04:17]} {[%emt 00:00:09]} 21. Qxe5+ {[%clk
00:06:58]} {[%emt 00:00:25]} f6 {[%clk 00:04:16]} {[%emt 00:00:04]} 22. Qxe6
{[%clk 00:06:35]} {[%emt 00:00:29]} gxh4 {[%clk 00:04:15]} {[%emt 00:00:06]} 23.
Bd3 {[%clk 00:05:41]} {[%emt 00:00:59]} hxg3 {[%clk 00:03:41]} {[%emt
00:00:39]} 24. Qg4+ {[%clk 00:05:25]} {[%emt 00:00:21]} Kf7 {[%clk 00:03:35]}
{[%emt 00:00:09]} 25. Nxd5 {[%clk 00:05:06]} {[%emt 00:00:27]} gxf2+ {[%clk
00:02:55]} {[%emt 00:00:44]} 26. Kxf2 {[%clk 00:05:04]} {[%emt 00:00:07]} Rg8
{[%clk 00:02:14]} {[%emt 00:00:46]} 27. Rc7+ {[%clk 00:04:33]} {[%emt
00:00:36]} Qxc7 {[%clk 00:01:57]} {[%emt 00:00:21]} 28. Qh5+ {[%clk 00:04:28]}
{[%emt 00:00:11]} 1-0

[Event "MČR juniorů a juniorek v rapid šachu 2023"]
[Site "Czech Republic"]
[Date "2023.09.23"]
[Round "3.21"]
[White "Janouskova, Adela"]
[Black "Rybacek, Martin"]
[Result "0-1"]
[TimeControl "20 min + 5 sec per move"]
[WhiteFideId "23709804"]
[BlackFideId "23739266"]
[WhiteElo "1442"]
[BlackElo "1755"]

1. e4 {[%clk 00:20:05]} {[%emt 00:00:04]} c6 {[%clk 00:20:09]} {[%emt
00:00:02]} 2. d4 {[%clk 00:20:00]} {[%emt 00:00:09]} d5 {[%clk 00:20:12]}
{[%emt 00:00:03]} 3. e5 {[%clk 00:19:57]} {[%emt 00:00:08]} c5 {[%clk
00:20:14]} {[%emt 00:00:03]} 4. c3 {[%clk 00:19:28]} {[%emt 00:00:33]} Nc6
{[%clk 00:19:35]} {[%emt 00:00:44]} 5. Nf3 {[%clk 00:19:30]} {[%emt 00:00:03]}
Bg4 {[%clk 00:19:29]} {[%emt 00:00:11]} 6. Be3 {[%clk 00:16:44]} {[%emt
00:02:51]} e6 {[%clk 00:18:15]} {[%emt 00:01:20]} 7. Be2 {[%clk 00:16:03]}
{[%emt 00:00:46]} Nge7 {[%clk 00:16:06]} {[%emt 00:02:14]} 8. Na3 {[%clk
00:15:13]} {[%emt 00:00:55]} Nf5 {[%clk 00:15:19]} {[%emt 00:00:51]} 9. Nc2
{[%clk 00:15:05]} {[%emt 00:00:13]} Qb6 {[%clk 00:14:04]} {[%emt 00:01:20]} 10.
b3 {[%clk 00:14:09]} {[%emt 00:01:01]} Be7 {[%clk 00:10:15]} {[%emt 00:03:55]}
11. O-O {[%clk 00:13:54]} {[%emt 00:00:19]} cxd4 {[%clk 00:09:41]} {[%emt
00:00:40]} 12. cxd4 {[%clk 00:13:31]} {[%emt 00:00:28]} O-O {[%clk 00:09:27]}
{[%emt 00:00:19]} 13. h3 {[%clk 00:13:31]} {[%emt 00:00:05]} Nxe3 {[%clk
00:08:52]} {[%emt 00:00:40]} 14. fxe3 {[%clk 00:13:32]} {[%emt 00:00:04]} Bf5
{[%clk 00:08:44]} {[%emt 00:00:13]} 15. Bd3 {[%clk 00:13:18]} {[%emt 00:00:18]}
Bxd3 {[%clk 00:08:11]} {[%emt 00:00:38]} 16. Qxd3 {[%clk 00:13:21]} {[%emt
00:00:02]} Rac8 {[%clk 00:07:28]} {[%emt 00:00:49]} 17. Rf2 {[%clk 00:10:37]}
{[%emt 00:02:49]} Rc7 {[%clk 00:05:37]} {[%emt 00:01:56]} 18. Nh2 {[%clk
00:09:32]} {[%emt 00:01:10]} Nb4 {[%clk 00:04:48]} {[%emt 00:00:55]} 19. Nxb4
Qxb4 {[%clk 00:04:52]} 20. Raf1 {[%clk 00:09:17]} {[%emt 00:00:12]} Qc3 {[%clk
00:04:47]} {[%emt 00:00:11]} 21. Qe2 {[%clk 00:08:33]} {[%emt 00:00:49]} Bg5
{[%clk 00:04:24]} {[%emt 00:00:28]} 22. Rf3 {[%clk 00:08:00]} {[%emt 00:00:39]}
Qc2 {[%clk 00:04:20]} {[%emt 00:00:09]} 23. R3f2 {[%clk 00:06:53]} {[%emt
00:01:12]} Qxe2 {[%clk 00:04:19]} {[%emt 00:00:07]} 24. Rxe2 {[%clk 00:06:56]}
{[%emt 00:00:01]} Rc3 {[%clk 00:04:13]} {[%emt 00:00:11]} 25. Kf2 {[%clk
00:06:46]} {[%emt 00:00:15]} Rfc8 {[%clk 00:04:10]} {[%emt 00:00:08]} 26. Rfe1
{[%clk 00:06:44]} {[%emt 00:00:07]} Kf8 {[%clk 00:03:41]} {[%emt 00:00:33]} 27.
Nf3 {[%clk 00:06:28]} {[%emt 00:00:20]} Be7 {[%clk 00:03:36]} {[%emt 00:00:11]}
28. Rd2 {[%clk 00:05:36]} {[%emt 00:00:57]} Bb4 {[%clk 00:03:24]} {[%emt
00:00:17]} 29. Ree2 {[%clk 00:05:38]} {[%emt 00:00:03]} Rc1 {[%clk 00:03:12]}
{[%emt 00:00:17]} 30. Rb2 {[%clk 00:05:36]} {[%emt 00:00:06]} Ba3 {[%clk
00:03:02]} {[%emt 00:00:15]} 31. Rbd2 {[%clk 00:05:32]} {[%emt 00:00:09]} Bb4
{[%clk 00:03:02]} {[%emt 00:00:06]} 32. Rb2 {[%clk 00:05:31]} {[%emt 00:00:06]}
Ba3 {[%clk 00:03:06]} {[%emt 00:00:02]} 33. Rbd2 {[%clk 00:05:34]} {[%emt
00:00:01]} Ke7 {[%clk 00:03:09]} 34. Ne1 {[%clk 00:05:01]} {[%emt 00:00:38]}
Bb4 {[%clk 00:02:57]} {[%emt 00:00:18]} 35. Rd3 {[%clk 00:04:03]} {[%emt
00:01:04]} Kd7 {[%clk 00:02:26]} {[%emt 00:00:36]} 36. Nf3 {[%clk 00:03:12]}
{[%emt 00:00:54]} R8c2 {[%clk 00:02:15]} {[%emt 00:00:18]} 37. Ng5 {[%clk
00:01:54]} {[%emt 00:01:22]} Rxe2+ {[%clk 00:01:52]} {[%emt 00:00:28]} 38. Kxe2
{[%clk 00:01:58]} {[%emt 00:00:02]} Rc2+ {[%clk 00:01:54]} {[%emt 00:00:03]} 39.
Kf3 {[%clk 00:01:51]} {[%emt 00:00:12]} Ke7 {[%clk 00:01:45]} {[%emt 00:00:14]}
40. Nxh7 {[%clk 00:00:53]} {[%emt 00:01:04]} Rxa2 {[%clk 00:01:36]} {[%emt
00:00:15]} 41. g4 {[%clk 00:00:15]} {[%emt 00:00:42]} Be1 {[%clk 00:01:30]}
{[%emt 00:00:10]} 42. Ng5 {[%clk 00:00:12]} {[%emt 00:00:08]} Rf2+ {[%clk
00:01:30]} {[%emt 00:00:05]} 43. Kg3 {[%clk 00:00:16]} {[%emt 00:00:02]} Rd2+
{[%clk 00:01:27]} {[%emt 00:00:07]} 44. Kf4 {[%clk 00:00:16]} {[%emt 00:00:05]}
Rxd3 {[%clk 00:01:31]} {[%emt 00:00:02]} 0-1

[Event "MČR juniorů a juniorek v rapid šachu 2023"]
[Site "Czech Republic"]
[Date "2023.09.23"]
[Round "3.22"]
[White "Mrazek, Adam"]
[Black "Housa, Jan"]
[Result "0-1"]
[TimeControl "20 min + 5 sec per move"]
[WhiteFideId "23725010"]
[BlackFideId "23736356"]
[WhiteElo "1753"]
[BlackElo "1439"]

1. c4 {[%clk 00:20:07]} {[%emt 00:00:03]} g6 {[%clk 00:20:08]} {[%emt
00:00:02]} 2. g3 {[%clk 00:20:10]} {[%emt 00:00:02]} Bg7 {[%clk 00:20:12]}
{[%emt 00:00:02]} 3. Bg2 {[%clk 00:20:12]} {[%emt 00:00:02]} Nf6 {[%clk
00:20:15]} {[%emt 00:00:02]} 4. Nf3 {[%clk 00:20:06]} {[%emt 00:00:11]} c6
{[%clk 00:20:19]} {[%emt 00:00:02]} 5. O-O {[%clk 00:20:00]} {[%emt 00:00:10]}
O-O {[%clk 00:20:21]} {[%emt 00:00:03]} 6. d4 {[%clk 00:18:38]} {[%emt
00:01:27]} d5 {[%clk 00:20:22]} {[%emt 00:00:05]} 7. Qc2 {[%clk 00:16:41]}
{[%emt 00:02:02]} Bf5 {[%clk 00:19:10]} {[%emt 00:01:17]} 8. Qb3 {[%clk
00:16:45]} {[%emt 00:00:02]} Qb6 {[%clk 00:19:05]} {[%emt 00:00:09]} 9. c5
{[%clk 00:15:49]} {[%emt 00:01:01]} Qxb3 {[%clk 00:18:01]} {[%emt 00:01:10]} 10.
axb3 {[%clk 00:15:53]} Na6 {[%clk 00:17:25]} {[%emt 00:00:40]} 11. Bd2 {[%clk
00:15:04]} {[%emt 00:00:55]} Ne4 {[%clk 00:17:02]} {[%emt 00:00:28]} 12. Ba5
{[%clk 00:12:26]} {[%emt 00:02:43]} f6 {[%clk 00:16:23]} {[%emt 00:00:44]} 13.
Nh4 {[%clk 00:11:19]} {[%emt 00:01:11]} Bd7 {[%clk 00:15:44]} {[%emt 00:00:44]}
14. Nd2 {[%clk 00:06:37]} {[%emt 00:04:47]} Nxd2 {[%clk 00:14:40]} {[%emt
00:01:10]} 15. Bxd2 {[%clk 00:06:40]} {[%emt 00:00:02]} e5 {[%clk 00:14:21]}
{[%emt 00:00:24]} 16. e3 {[%clk 00:06:36]} {[%emt 00:00:08]} Nc7 {[%clk
00:13:37]} {[%emt 00:00:49]} 17. Rfd1 {[%clk 00:05:24]} {[%emt 00:01:17]} Nb5
{[%clk 00:12:21]} {[%emt 00:01:22]} 18. Bc1 {[%clk 00:03:31]} {[%emt 00:01:58]}
Be6 {[%clk 00:09:57]} {[%emt 00:02:29]} 19. h3 {[%clk 00:02:44]} {[%emt
00:00:52]} e4 {[%clk 00:08:32]} {[%emt 00:01:30]} 20. Bf1 {[%clk 00:02:44]}
{[%emt 00:00:04]} g5 {[%clk 00:08:18]} {[%emt 00:00:19]} 21. Ng2 {[%clk
00:00:55]} {[%emt 00:01:54]} Bxh3 {[%clk 00:08:11]} {[%emt 00:00:12]} 22. Kh2
{[%clk 00:00:18]} {[%emt 00:00:42]} Bg4 {[%clk 00:07:30]} {[%emt 00:00:46]} 23.
Rd2 {[%clk 00:00:21]} {[%emt 00:00:02]} h5 {[%clk 00:06:38]} {[%emt 00:00:57]}
24. Ra5 {[%clk 00:00:17]} {[%emt 00:00:09]} a6 {[%clk 00:06:08]} {[%emt
00:00:36]} 25. Rc2 {[%clk 00:00:13]} {[%emt 00:00:08]} f5 {[%clk 00:05:54]}
{[%emt 00:00:19]} 26. Bd2 {[%clk 00:00:16]} {[%emt 00:00:02]} Rf7 {[%clk
00:05:15]} {[%emt 00:00:43]} 27. Ra1 {[%clk 00:00:12]} {[%emt 00:00:09]} Raf8
{[%clk 00:05:10]} {[%emt 00:00:09]} 28. Bxb5 {[%clk 00:00:06]} {[%emt
00:00:13]} axb5 {[%clk 00:05:13]} {[%emt 00:00:01]} 29. Rcc1 {[%clk 00:00:08]}
{[%emt 00:00:03]} Bh6 {[%clk 00:04:57]} {[%emt 00:00:22]} 30. Ra7 {[%clk
00:00:07]} {[%emt 00:00:06]} Bf3 {[%clk 00:04:16]} {[%emt 00:00:45]} 31. Rca1
{[%clk 00:00:06]} {[%emt 00:00:06]} Rg7 {[%clk 00:03:47]} {[%emt 00:00:34]} 32.
Ra8 {[%clk 00:00:07]} {[%emt 00:00:05]} Bxg2 {[%clk 00:03:30]} {[%emt
00:00:22]} 33. Kxg2 {[%clk 00:00:12]} f4 {[%clk 00:03:33]} {[%emt 00:00:01]} 34.
Rxf8+ {[%clk 00:00:09]} {[%emt 00:00:09]} Kxf8 {[%clk 00:03:36]} {[%emt
00:00:01]} 35. Ra8+ {[%clk 00:00:13]} Kf7 {[%clk 00:03:40]} {[%emt 00:00:01]}
36. Ba5 {[%clk 00:00:14]} {[%emt 00:00:04]} f3+ {[%clk 00:03:06]} {[%emt
00:00:39]} 37. Kh2 {[%clk 00:00:10]} {[%emt 00:00:09]} g4 {[%clk 00:02:39]}
{[%emt 00:00:32]} 38. Bc7 {[%clk 00:00:14]} {[%emt 00:00:02]} Kg6 {[%clk
00:02:29]} {[%emt 00:00:15]} 39. Be5 {[%clk 00:00:10]} {[%emt 00:00:08]} Rf7
{[%clk 00:01:45]} {[%emt 00:00:49]} 40. Rg8+ {[%clk 00:00:07]} {[%emt
00:00:09]} Bg7 {[%clk 00:00:55]} {[%emt 00:00:55]} 41. Bd6 {[%clk 00:00:06]}
{[%emt 00:00:06]} Kh7 {[%clk 00:00:44]} {[%emt 00:00:17]} 42. Rb8 {[%clk
00:00:09]} {[%emt 00:00:01]} Bxd4 {[%clk 00:00:25]} {[%emt 00:00:24]} 43. exd4
{[%clk 00:00:09]} {[%emt 00:00:05]} e3 {[%clk 00:00:29]} {[%emt 00:00:01]} 44.
Be5 {[%emt 00:00:20]} 0-1